fUSD/lending_fUSD_20260424
["ID","MTS","AMOUNT","RATE_DAILY","PERIOD"]
[421057993,1776960632138,-1085.56,8.093e-05,2]
[421057994,1776960632152,-114.44,8.093e-05,2]
[421057995,1776960632162,-250.0,8.094e-05,2]
[421057996,1776960632172,-281.11505471,8.094e-05,2]
[421057997,1776960632184,-18.88494529,8.094e-05,2]
[421057998,1776960632195,-300.0,8.094e-05,2]
[421057999,1776960632204,-255.0,8.094e-05,2]
[421058000,1776960632215,-18216.1729,8.095e-05,2]
[421058001,1776960632225,-264.3,8.193e-05,2]
[421058002,1776960632235,-150.0,8.193e-05,2]
[421058003,1776960632244,-500.0,8.194e-05,2]
[421058004,1776960632254,-500.0,8.194e-05,2]
[421058005,1776960632264,-563.41014965,8.194e-05,2]
[421058006,1776960632274,-500.0,8.194e-05,2]
[421058007,1776960632284,-446.95418117,8.194e-05,2]
[421058008,1776960632294,-500.0,8.194e-05,2]
[421058009,1776960632303,-500.0,8.194e-05,2]
[421058010,1776960632313,-500.0,8.194e-05,2]
[421058011,1776960632323,-500.0,8.194e-05,2]
[421058012,1776960632333,-500.0,8.194e-05,2]
[421058013,1776960632344,-500.0,8.194e-05,2]
[421058014,1776960632355,-500.0,8.194e-05,2]
[421058015,1776960632364,-152.75725252,8.194e-05,2]
[421058016,1776960632373,-348.4334017,8.194e-05,2]
[421058017,1776960632382,-500.0,8.194e-05,2]
[421058018,1776960632391,-500.0,8.194e-05,2]
[421058019,1776960632400,-588.25405854,8.194e-05,2]
[421058020,1776960632410,-500.0,8.194e-05,2]
[421058021,1776960632419,-500.0,8.194e-05,2]
[421058022,1776960632428,-500.0,8.194e-05,2]
[421058024,1776960632438,-708.26511375,8.194e-05,2]
[421058026,1776960632447,-708.26511375,8.194e-05,2]
[421058027,1776960632456,-708.26511375,8.194e-05,2]
[421058028,1776960632466,-708.26511375,8.194e-05,2]
[421058029,1776960632475,-708.26511375,8.194e-05,2]
[421058030,1776960632484,-708.26511375,8.194e-05,2]
[421058031,1776960632494,-708.26511375,8.194e-05,2]
[421058032,1776960632503,-708.26511375,8.194e-05,2]
[421058033,1776960632512,-708.26511375,8.194e-05,2]
[421058034,1776960632522,-708.26511375,8.194e-05,2]
[421058035,1776960632532,-708.26511375,8.194e-05,2]
[421058036,1776960632543,-708.26511375,8.194e-05,2]
[421058037,1776960632554,-708.26511375,8.194e-05,2]
[421058038,1776960632564,-708.26511375,8.194e-05,2]
[421058039,1776960632577,-708.26511375,8.194e-05,2]
[421058040,1776960632589,-708.26511375,8.194e-05,2]
[421058041,1776960632599,-708.26511375,8.194e-05,2]
[421058042,1776960632610,-708.26511375,8.194e-05,2]
[421058043,1776960632620,-708.26511375,8.194e-05,2]
[421058044,1776960632631,-708.26511375,8.194e-05,2]
[421058045,1776960632642,-708.26511375,8.194e-05,2]
[421058046,1776960632652,-708.26511375,8.194e-05,2]
[421058047,1776960632664,-708.26511375,8.194e-05,2]
[421058048,1776960632673,-708.26511375,8.194e-05,2]
[421058049,1776960632683,-708.26511375,8.194e-05,2]
[421058050,1776960632692,-708.26511375,8.194e-05,2]
[421058051,1776960632701,-708.26511375,8.194e-05,2]
[421058052,1776960632711,-708.26511375,8.194e-05,2]
[421058053,1776960632721,-708.26511375,8.194e-05,2]
[421058054,1776960632731,-708.26511375,8.194e-05,2]
[421058055,1776960632740,-708.26511375,8.194e-05,2]
[421058056,1776960632751,-708.26511375,8.194e-05,2]
[421058057,1776960632761,-708.26511375,8.194e-05,2]
[421058058,1776960632770,-708.26511375,8.194e-05,2]
[421058059,1776960632781,-708.26511375,8.194e-05,2]
[421058060,1776960632790,-708.26511375,8.194e-05,2]
[421058061,1776960632801,-708.26511375,8.194e-05,2]
[421058062,1776960632811,-708.26511375,8.194e-05,2]
[421058063,1776960632821,-708.26511375,8.194e-05,2]
[421058064,1776960632831,-708.26511375,8.194e-05,2]
[421058065,1776960632840,-708.26511375,8.194e-05,2]
[421058066,1776960632850,-708.26511375,8.194e-05,2]
[421058067,1776960632861,-708.26511375,8.194e-05,2]
[421058068,1776960632870,-346.84458248,8.194e-05,2]
[421058069,1776960632878,-708.26511375,8.194e-05,2]
[421058070,1776960632889,-229.80933738,8.194e-05,2]
[421058071,1776960632899,-706.72540699,8.194e-05,2]
[421058072,1776960632908,-706.72540699,8.194e-05,2]
[421058073,1776960632917,-706.72540699,8.194e-05,2]
[421058074,1776960632926,-706.72540699,8.194e-05,2]
[421058075,1776960632935,-706.72540699,8.194e-05,2]
[421058076,1776960632945,-706.72540699,8.194e-05,2]
[421058077,1776960632954,-706.72540699,8.194e-05,2]
[421058078,1776960632963,-706.72540699,8.194e-05,2]
[421058079,1776960632972,-706.72540699,8.194e-05,2]
[421058080,1776960632982,-627.7474071,8.194e-05,2]
[421058081,1776960632999,-78.97799989,8.194e-05,2]
[421058082,1776960633009,-706.72540699,8.194e-05,2]
[421058083,1776960633019,-706.72540699,8.194e-05,2]
[421058084,1776960633029,-706.72540699,8.194e-05,2]
[421058085,1776960633038,-706.72540699,8.194e-05,2]
[421058086,1776960633047,-2.74678938,8.194e-05,2]
[421058095,1776960638258,-288.3480012,8.195e-05,2]
[421058096,1776960638270,-18216.17296858,8.195e-05,2]
[421058097,1776960638282,-48993.48432967,8.195e-05,2]
[421058098,1776960638294,-829.67010334,8.195e-05,2]
[421058099,1776960638313,-1555.26,8.195e-05,2]
[421058316,1776960640721,-257.0,8.195e-05,2]
[421058318,1776960640731,-436.27386168,8.195e-05,2]
[421058341,1776960643257,-625535.32123553,8.195e-05,2]
[421058342,1776960643267,-280.0,8.219e-05,2]
[421058343,1776960643278,-644.0,8.902e-05,2]
[421058344,1776960643288,-250.0,8.902e-05,2]
[421058345,1776960643297,-4418.85189415,8.903e-05,2]
[421058346,1776960643307,-255.0,9.012e-05,2]
[421058347,1776960643316,-250.0,9.012e-05,2]
[421058348,1776960643326,-16777.30725509,9.04e-05,2]
[421058349,1776960643336,-308.53952632,9.398e-05,2]
[421058350,1776960643347,-769.36312026,9.854e-05,2]
[421058351,1776960643357,-897.77579143,9.854e-05,2]
[421058352,1776960643366,-350.0,0.0001023,2]
[421058353,1776960643376,-5530.0,0.000103,3]
[421058354,1776960643387,-10000.0,0.000104,2]
[421058355,1776960643398,-150.0,0.00010426,2]
[421058356,1776960643409,-150.0,0.00010426,2]
[421058357,1776960643419,-158.23650103,0.00010426,2]
[421058358,1776960643429,-500.0,0.00010426,2]
[421058359,1776960643439,-500.0,0.00010426,2]
[421058360,1776960643449,-500.0,0.00010426,2]
[421058361,1776960643459,-500.0,0.00010426,2]
[421058362,1776960643469,-500.0,0.00010426,2]
[421058363,1776960643478,-500.0,0.00010426,2]
[421058364,1776960643488,-500.0,0.00010426,2]
[421058365,1776960643497,-500.0,0.00010426,2]
[421058366,1776960643510,-500.0,0.00010426,2]
[421058367,1776960643520,-500.0,0.00010426,2]
[421058368,1776960643530,-500.0,0.00010426,2]
[421058369,1776960643541,-500.0,0.00010426,2]
[421058370,1776960643551,-500.0,0.00010426,2]
[421058371,1776960643560,-500.0,0.00010426,2]
[421058372,1776960643570,-613.56929621,0.00010426,2]
[421058373,1776960643580,-350.0,0.00010461,2]
[421058374,1776960643589,-350.0,0.00010464,2]
[421058375,1776960643599,-350.0,0.0001052,2]
[421058376,1776960643608,-5000.0,0.00010555,2]
[421058377,1776960643620,-756.90551166,0.000106,2]
[421058378,1776960643631,-5530.0,0.000106,5]
[421058379,1776960643640,-618.54099224,0.000106,2]
[421058380,1776960643650,-2334.88378182,0.000106,2]
[421058381,1776960643659,-201.95715033,0.000106,2]
[421058382,1776960643668,-350.0,0.00010616,2]
[421058383,1776960643678,-391.83,0.00010647,2]
[421058384,1776960643687,-31410.7036046,0.00010655,2]
[421058385,1776960643697,-200.0,0.00010658,2]
[421058386,1776960643708,-250.0,0.00010658,2]
[421058387,1776960643718,-350.0,0.00010683,2]
[421058388,1776960643728,-161.0,0.0001069,2]
[421058389,1776960643742,-313.72199159,0.0001069,2]
[421058390,1776960643751,-313.72199159,0.0001069,2]
[421058391,1776960643761,-151.0,0.00010697,2]
[421058392,1776960643771,-12179.6640901,0.00010698,2]
[421058393,1776960643784,-15018.1556721,0.00010698,2]
[421058394,1776960643793,-11173.8729359,0.00010698,2]
[421058395,1776960643803,-825.1157921,0.00010698,2]
[421058396,1776960643812,-6457.4440667,0.00010698,2]
[421058397,1776960643822,-150.0,0.00010699,2]
[421058398,1776960643832,-128389.2314719,0.000107,2]
[421058399,1776960643844,-81852.37404457,0.000107,2]
[421058401,1776960643876,-984476.05949152,0.000107,2]
[421058410,1776960647046,-704.43794619,0.000107,2]
[421058412,1776960647090,-4083.24999999,0.000107,2]
[421058461,1776961832263,-1200.0,7.93e-05,2]
[421058462,1776961832273,-250.0,7.931e-05,2]
[421058463,1776961832282,-1200.0,7.931e-05,2]
[421058464,1776961832292,-253.0,7.931e-05,2]
[421058465,1776961832303,-300.0,7.931e-05,2]
[421058466,1776961832313,-300.0,7.931e-05,2]
[421058467,1776961832323,-300.0,7.931e-05,2]
[421058468,1776961832333,-3980.885,7.933e-05,2]
[421058469,1776961832342,-281.678,7.933e-05,2]
[421058470,1776961832352,-221.78801661,7.956e-05,2]
[421058471,1776961832362,-150.0,7.993e-05,2]
[421058472,1776961832371,-50899.80247784,7.994e-05,2]
[421058473,1776961832382,-20675.97734702,7.994e-05,2]
[421058474,1776961832393,-584.79955105,7.994e-05,2]
[421058475,1776961832409,-843.54486128,7.994e-05,2]
[421058476,1776961832421,-7635.48131796,7.994e-05,2]
[421058477,1776961832436,-45349.08244485,7.994e-05,2]
[421058478,1776961832446,-11850.242,7.995e-05,2]
[421058479,1776961832455,-500.0,8.093e-05,2]
[421058480,1776961832464,-500.0,8.093e-05,2]
[421058481,1776961832474,-239.19525028,8.093e-05,2]
[421058482,1776961832483,-271.88379791,8.093e-05,2]
[421058483,1776961832492,-500.0,8.093e-05,2]
[421058484,1776961832502,-500.0,8.093e-05,2]
[421058485,1776961832511,-500.0,8.093e-05,2]
[421058486,1776961832520,-500.0,8.093e-05,2]
[421058487,1776961832529,-500.0,8.093e-05,2]
[421058488,1776961832539,-500.0,8.093e-05,2]
[421058489,1776961832548,-189.34949486,8.093e-05,2]
[421058490,1776961832557,-500.0,8.093e-05,2]
[421058491,1776961832567,-500.0,8.093e-05,2]
[421058492,1776961832577,-500.0,8.093e-05,2]
[421058493,1776961832587,-500.0,8.093e-05,2]
[421058494,1776961832596,-500.0,8.093e-05,2]
[421058495,1776961832606,-500.0,8.093e-05,2]
[421058496,1776961832615,-500.0,8.093e-05,2]
[421058497,1776961832624,-500.0,8.093e-05,2]
[421058498,1776961832633,-500.0,8.093e-05,2]
[421058499,1776961832643,-500.0,8.093e-05,2]
[421058500,1776961832652,-500.0,8.093e-05,2]
[421058501,1776961832661,-500.0,8.093e-05,2]
[421058502,1776961832670,-500.0,8.093e-05,2]
[421058503,1776961832680,-500.0,8.093e-05,2]
[421058504,1776961832689,-500.0,8.093e-05,2]
[421058505,1776961832698,-500.0,8.093e-05,2]
[421058506,1776961832707,-500.0,8.093e-05,2]
[421058507,1776961832716,-500.0,8.093e-05,2]
[421058508,1776961832725,-500.0,8.093e-05,2]
[421058509,1776961832735,-500.0,8.093e-05,2]
[421058510,1776961832744,-500.0,8.093e-05,2]
[421058511,1776961832753,-173.71223885,8.093e-05,2]
[421058513,1776961832762,-500.0,8.093e-05,2]
[421058515,1776961832771,-500.0,8.093e-05,2]
[421058517,1776961832780,-500.0,8.093e-05,2]
[421058518,1776961832790,-500.0,8.093e-05,2]
[421058520,1776961832798,-500.0,8.093e-05,2]
[421058521,1776961832808,-500.0,8.093e-05,2]
[421058523,1776961832817,-500.0,8.093e-05,2]
[421058525,1776961832826,-500.0,8.093e-05,2]
[421058527,1776961832835,-500.0,8.093e-05,2]
[421058528,1776961832844,-500.0,8.093e-05,2]
[421058530,1776961832853,-500.0,8.093e-05,2]
[421058532,1776961832862,-109.46820452,8.093e-05,2]
[421058534,1776961832878,-390.53179548,8.093e-05,2]
[421058536,1776961832887,-500.0,8.093e-05,2]
[421058537,1776961832897,-300.80358236,8.093e-05,2]
[421058539,1776961832908,-199.19641764,8.093e-05,2]
[421058541,1776961832918,-500.0,8.093e-05,2]
[421058543,1776961832927,-500.0,8.093e-05,2]
[421058544,1776961832935,-500.0,8.093e-05,2]
[421058546,1776961832945,-500.0,8.093e-05,2]
[421058548,1776961832953,-235.26325134,8.093e-05,2]
[421058549,1776961832965,-264.73674866,8.093e-05,2]
[421058550,1776961832975,-118.09625134,8.093e-05,2]
[421058551,1776961832989,-381.90374866,8.093e-05,2]
[421058552,1776961832998,-30.87353203,8.093e-05,2]
[421058553,1776961833009,-320.124,8.093e-05,2]
[421058554,1776961833059,-149.00246797,8.093e-05,2]
[421058555,1776961833068,-334.9645044,8.093e-05,2]
[421058556,1776961833082,-165.0354956,8.093e-05,2]
[421058557,1776961833092,-222.0695044,8.093e-05,2]
[421058558,1776961833104,-277.9304956,8.093e-05,2]
[421058559,1776961833114,-218.93494949,8.093e-05,2]
[421058560,1776961833123,-500.0,8.093e-05,2]
[421058561,1776961833132,-280.0,8.219e-05,2]
[421058562,1776961833142,-220.13455491,8.723e-05,2]
[421058563,1776961833154,-3070.08204455,8.723e-05,2]
[421058564,1776961833180,-987.95536,8.723e-05,2]
[421058565,1776961833191,-721.82804054,8.723e-05,2]
[421058566,1776961833201,-250.0,8.723e-05,2]
[421058567,1776961833210,-255.0,8.792e-05,2]
[421058568,1776961833221,-150.0,9.616e-05,2]
[421058569,1776961833231,-150.0,9.616e-05,2]
[421058570,1776961833241,-150.0,9.616e-05,2]
[421058571,1776961833250,-150.0,9.616e-05,2]
[421058572,1776961833262,-150.0,9.616e-05,2]
[421058573,1776961833271,-150.96364531,9.616e-05,2]
[421058574,1776961833280,-151.03787675,9.616e-05,2]
[421058575,1776961833290,-150.0,9.616e-05,2]
[421058576,1776961833299,-150.0,9.616e-05,2]
[421058577,1776961833309,-150.00000001,9.616e-05,2]
[421058578,1776961833318,-20.71161493,9.616e-05,2]
[421058584,1776961838384,-129.28838507,9.616e-05,2]
[421058586,1776961838394,-300.0,9.63e-05,2]
[421058588,1776961838404,-578.20924308,0.00010164,2]
[421058589,1776961838414,-721.12765535,0.00010164,2]
[421058590,1776961838423,-1428.38747117,0.00010164,2]
[421058593,1776961838870,-593.24155819,0.00010164,2]
[421058700,1776961839877,-150.2661433,0.00010164,2]
[421058702,1776961839887,-500.0,0.00010164,2]
[421058704,1776961839897,-151.0,0.00010164,2]
[421058706,1776961839907,-151.0,0.00010164,2]
[421058708,1776961839917,-434.09022348,0.00010164,2]
[421058711,1776961839933,-565.90977652,0.00010164,2]
[421058713,1776961839942,-1000.0,0.00010164,2]
[421058715,1776961839951,-1000.0,0.00010164,2]
[421058717,1776961839961,-224.41864947,0.00010164,2]
[421058719,1776961839971,-174.61919141,0.00010164,2]
[421058722,1776961839980,-500.0,0.00010219,2]
[421058724,1776961839990,-151.0,0.00010219,2]
[421058726,1776961839999,-500.0,0.00010274,2]
[421058728,1776961840008,-151.0,0.00010274,2]
[421058730,1776961840018,-500.0,0.00010329,2]
[421058732,1776961840027,-151.0,0.00010329,2]
[421058734,1776961840036,-350.0,0.00010379,2]
[421058735,1776961840046,-500.0,0.00010384,2]
[421058736,1776961840055,-151.0,0.00010384,2]
[421058737,1776961840065,-500.0,0.00010439,2]
[421058738,1776961840075,-151.0,0.00010439,2]
[421058739,1776961840084,-500.0,0.00010494,2]
[421058740,1776961840094,-151.0,0.00010494,2]
[421058741,1776961840104,-500.0,0.00010549,2]
[421058742,1776961840114,-151.0,0.00010549,2]
[421058743,1776961840124,-700.0,0.00010584,2]
[421058744,1776961840133,-153.0,0.000106,5]
[421058745,1776961840143,-10000.0,0.000106,2]
[421058746,1776961840152,-150.0,0.000106,5]
[421058747,1776961840162,-165.38220493,0.000106,2]
[421058748,1776961840172,-3106.38346614,0.000106,2]
[421058749,1776961840181,-500.0,0.00010604,2]
[421058750,1776961840191,-151.0,0.00010604,2]
[421058751,1776961840201,-200.0,0.00010658,2]
[421058752,1776961840211,-250.0,0.00010658,2]
[421058753,1776961840220,-500.0,0.00010659,2]
[421058754,1776961840230,-151.0,0.00010659,2]
[421058755,1776961840240,-500.0,0.00010673,2]
[421058756,1776961840249,-500.0,0.00010673,2]
[421058757,1776961840259,-500.0,0.00010673,2]
[421058758,1776961840272,-150.0,0.00010685,2]
[421058759,1776961840282,-150.0,0.00010685,2]
[421058760,1776961840291,-156.8609958,0.0001069,2]
[421058761,1776961840301,-17655.5196299,0.00010692,2]
[421058763,1776961840311,-232.7481021,0.00010692,2]
[421058764,1776961840321,-202.5748255,0.00010692,2]
[421058765,1776961840330,-17752.3606603,0.00010692,2]
[421058766,1776961840340,-5831.2932097,0.00010692,2]
[421058767,1776961840350,-151.0,0.00010697,2]
[421058768,1776961840361,-150.0,0.00010699,2]
[421058769,1776961840371,-500.0,0.00010699,2]
[421058770,1776961840381,-242.79120773,0.00010699,2]
[421058771,1776961840390,-500.0,0.00010699,2]
[421058772,1776961840400,-301.96227424,0.00010699,2]
[421058774,1776961840410,-500.0,0.00010699,2]
[421058775,1776961840420,-500.0,0.00010699,2]
[421058776,1776961840429,-500.0,0.00010699,2]
[421058777,1776961840439,-500.0,0.00010699,2]
[421058778,1776961840449,-500.0,0.00010699,2]
[421058779,1776961840458,-500.0,0.00010699,2]
[421058780,1776961840468,-500.0,0.00010699,2]
[421058781,1776961840479,-511.88811338,0.00010699,2]
[421058782,1776961840489,-500.0,0.00010699,2]
[421058783,1776961840502,-500.0,0.00010699,2]
[421058784,1776961840512,-500.0,0.00010699,2]
[421058785,1776961840522,-500.0,0.00010699,2]
[421058786,1776961840531,-250.0,0.00010699,2]
[421058788,1776961840541,-527.82126342,0.000107,2]
[421058789,1776961840555,-48993.48432967,0.000107,2]
[421058791,1776961840566,-829.67010334,0.000107,2]
[421058792,1776961840578,-1976.09516634,0.000107,2]
[421058794,1776961840590,-25272.76636241,0.000107,2]
[421058796,1776961840605,-14162.908,0.000107,2]
[421058797,1776961840629,-1807.85877248,0.000107,2]
[421058798,1776961840655,-39216.5,0.000107,2]
[421058799,1776961840690,-961.70821504,0.000107,2]
[421058800,1776961840962,-282.0,0.00010219,2]
[421058801,1776961840975,-267.06168683,0.000107,2]
[421058802,1776961840993,-2019.91513355,0.000107,2]
[421058804,1776961841006,-398.23705892,0.000107,2]
[421058806,1776961841017,-544.2039824,0.000107,2]
[421058807,1776961841029,-1587.87614288,0.000107,2]
[421058808,1776961841040,-393.51575662,0.000107,2]
[421058809,1776961841052,-69022.59168721,0.000107,2]
[421058816,1776961843496,-2577.4778583,7.894e-05,2]
[421058817,1776961843555,-859597.50191252,7.894e-05,2]
[421058818,1776961843567,-25994.08831578,7.894e-05,2]
[421058819,1776961843580,-11516.51194355,7.894e-05,2]
[421058820,1776961843594,-1718.45258,7.894e-05,2]
[421058830,1776961846429,-314.55,7.894e-05,2]
[421058831,1776961846442,-3580.5852253,7.894e-05,2]
[421058832,1776961846453,-910.07126,7.894e-05,2]
[421058833,1776961846465,-1478.68059726,7.894e-05,2]
[421058834,1776961846476,-399.48050875,7.894e-05,2]
[421058835,1776961846769,-42819.10453892,7.894e-05,2]
[421058836,1776961846780,-6246.70164589,7.894e-05,2]
[421058837,1776961846828,-814.40889612,7.894e-05,2]
[421058838,1776961846839,-110426.56451761,7.894e-05,2]
[421058839,1776961846849,-367101.58079318,0.000107,2]
[421058840,1776961846905,-225323.11306814,0.000107,2]
[421058843,1776961847410,-1771.7918838,0.000107,2]
[421058844,1776961847422,-504.66877853,0.000107,2]
[421058846,1776962201825,-183.0,0.000107,3]
[421058847,1776962201856,-1368.0,0.000107,3]
[421058848,1776962201885,-157.0,0.000107,3]
[421058849,1776962201915,-152.0,0.00010702,7]
[421058850,1776962227167,1299.0,0.00011,3]
[421058851,1776962233747,157.0,0.00011,3]
[421058852,1776962250402,151.0,0.000106,5]
[421058853,1776962288366,1234.0,0.00011,3]
[421058854,1776962295651,157.0,0.00011,3]
[421058855,1776962349691,157.0,0.00011,3]
[421058856,1776962410997,1173.0,0.00011,3]
[421058857,1776962411031,174.0,0.00011,3]
[421058858,1776962418685,157.0,0.00011,3]
[421058859,1776962465573,1114.0,0.00011,3]
[421058860,1776962484065,157.0,0.00011,3]
[421058861,1776962525112,1058.0,0.00011,3]
[421058862,1776962573337,4266.90580271,4.445e-05,2]
[421058863,1776962573361,10000.01,4.445e-05,2]
[421058864,1776962573383,10000.01,4.445e-05,2]
[421058865,1776962573407,10000.01,4.445e-05,2]
[421058866,1776962573429,10000.01,4.445e-05,2]
[421058867,1776962573451,10000.01,4.445e-05,2]
[421058868,1776962573473,10000.01,4.445e-05,2]
[421058869,1776962573495,10000.01,4.445e-05,2]
[421058870,1776962573519,10000.01,4.445e-05,2]
[421058871,1776962573540,10000.01,4.445e-05,2]
[421058872,1776962573567,460000.0,4.445e-05,2]
[421058873,1776962573591,2651.75015083,4.445e-05,2]
[421058874,1776962573614,2651.75015083,4.445e-05,2]
[421058875,1776962573636,2628.77360654,4.445e-05,2]
[421058876,1776962573659,2628.77360654,4.445e-05,2]
[421058877,1776962573681,2628.77360654,4.445e-05,2]
[421058878,1776962573704,2628.77360654,4.445e-05,2]
[421058879,1776962573727,2628.77360654,4.445e-05,2]
[421058880,1776962573749,2628.77360654,4.445e-05,2]
[421058881,1776962573772,2628.77360654,4.445e-05,2]
[421058882,1776962573795,2628.77360654,4.445e-05,2]
[421058883,1776962573817,2628.77360654,4.445e-05,2]
[421058884,1776962573839,2628.77360654,4.445e-05,2]
[421058885,1776962579492,-4642.80870733,4.445e-05,2]
[421058886,1776962579609,-5000.01,4.445e-05,2]
[421058887,1776962579692,-5000.01,4.445e-05,2]
[421058888,1776962580238,-3905.54546432,4.445e-05,2]
[421058889,1776962580324,-10000.01,4.445e-05,2]
[421058890,1776962587421,1006.0,0.00011,3]
[421058891,1776962587765,1006.0,0.00011,3]
[421058892,1776962588023,1006.0,0.00011,3]
[421058893,1776962588262,1006.0,0.00011,3]
[421058894,1776962647435,804.0,0.00011,3]
[421058895,1776962709148,764.0,0.00011,3]
[421058896,1776962765214,726.0,0.00011,3]
[421058905,1776962827320,690.0,0.00011,3]
[421058907,1776962864074,158.0,0.000106,5]
[421058908,1776962885452,655.0,0.00011,3]
[421058909,1776962947267,622.0,0.00011,3]
[421058910,1776963007503,165.0,0.00011,3]
[421058911,1776963007818,591.0,0.00011,3]
[421058931,1776963032828,-257.0,8.219e-05,2]
[421058932,1776963032838,-280.0,8.219e-05,2]
[421058933,1776963032848,-612.9318499,9.032e-05,2]
[421058934,1776963032857,-215.0667545,9.032e-05,2]
[421058935,1776963032867,-150.0,9.103e-05,2]
[421058936,1776963032876,-300.0,9.103e-05,2]
[421058937,1776963032886,-2407.5964141,9.104e-05,2]
[421058938,1776963032895,-1211.2312677,9.104e-05,2]
[421058939,1776963032904,-10309.793375,9.104e-05,2]
[421058940,1776963032914,-217.6614638,9.104e-05,2]
[421058941,1776963032923,-150.0,9.616e-05,2]
[421058942,1776963032933,-150.0,9.616e-05,2]
[421058943,1776963032942,-150.0,9.616e-05,2]
[421058944,1776963032951,-150.0,9.616e-05,2]
[421058945,1776963032961,-150.0,9.616e-05,2]
[421058946,1776963032970,-370.36368211,9.957e-05,2]
[421058947,1776963032979,-478.0,9.981e-05,2]
[421058948,1776963032988,-215.0667545,0.0001,2]
[421058949,1776963032997,-612.9318499,0.0001001,2]
[421058950,1776963033006,-255.0,0.00010013,2]
[421058951,1776963033015,-420.0,0.00010013,2]
[421058952,1776963033024,-424.06,0.0001003,2]
[421058953,1776963033034,-221.65,0.0001003,2]
[421058954,1776963033043,-206.88,0.0001003,2]
[421058955,1776963033051,-90302.22117995,0.00010079,2]
[421058956,1776963033063,-15869.39052005,0.00010079,2]
[421058957,1776963033072,-191.0,0.00010087,2]
[421058958,1776963033081,-150.0,0.00010151,2]
[421058959,1776963033090,-578.20924308,0.00010164,2]
[421058960,1776963033099,-500.0,0.00010164,2]
[421058961,1776963033108,-151.0,0.00010164,2]
[421058962,1776963033118,-174.61919141,0.00010164,2]
[421058963,1776963033127,-254.93285448,0.00010164,2]
[421058964,1776963033136,-6632.53552979,0.00010179,2]
[421058965,1776963033169,-290.05642929,0.00010179,2]
[421058966,1776963033181,-353.32,0.00010179,2]
[421058967,1776963033193,-2187.89052827,0.00010179,2]
[421058969,1776963037619,-350.88899691,0.00010179,2]
[421058970,1776963037631,-495.10189074,0.00010179,2]
[421058971,1776963037641,-1211.2312677,0.0001019,2]
[421058972,1776963037651,-500.0,0.00010219,2]
[421058973,1776963037660,-2407.5964141,0.0001025,2]
[421058974,1776963037670,-500.0,0.0001025,2]
[421058975,1776963037680,-500.0,0.00010274,2]
[421058976,1776963037695,-500.0,0.00010329,2]
[421058977,1776963037705,-500.0,0.00010384,2]
[421058978,1776963037716,-500.0,0.00010439,2]
[421058979,1776963037727,-775.2585,0.00010466,2]
[421058980,1776963037738,-11611.84,0.00010468,2]
[421058981,1776963037749,-500.0,0.00010494,2]
[421058982,1776963037760,-5000.0,0.000105,2]
[421058983,1776963037771,-2500.0,0.000105,2]
[421058984,1776963037783,-648.77615286,0.000105,2]
[421058985,1776963037794,-1035.46115538,0.000105,2]
[421058986,1776963037804,-500.0,0.00010549,2]
[421058987,1776963037814,-1035.46115538,0.0001055,2]
[421058988,1776963037824,-623.27426277,0.00010573,2]
[421058989,1776963037836,-160.14902791,0.00010573,2]
[421058990,1776963037846,-500.0,0.00010573,2]
[421058991,1776963037856,-500.0,0.00010573,2]
[421058992,1776963037866,-500.0,0.00010573,2]
[421058993,1776963037876,-500.0,0.00010573,2]
[421058994,1776963037886,-500.0,0.00010573,2]
[421058995,1776963037896,-160.1443379,0.00010573,2]
[421058996,1776963037907,-500.0,0.00010573,2]
[421058997,1776963037917,-500.0,0.00010573,2]
[421058998,1776963037927,-500.0,0.00010573,2]
[421058999,1776963037939,-266.43426913,0.00010573,2]
[421059000,1776963037950,-2000.0,0.0001059,2]
[421059001,1776963037961,-2000.0,0.0001059,2]
[421059002,1776963037971,-155.3168933,0.0001059,2]
[421059003,1776963037982,-200.0,0.00010594,2]